Cogmind - Beta 15 @@@ ROGUE MODE // 2025.06.25 @ 00:48:00 Player: Cracklepappy Result: Destroyed by D-53 Grenadier with Mini Grenade Launcher Performance ------------- Evolutions (0) 0 Regions Visited (2) 400 Robots Destroyed (36) 180 Value Destroyed (699) 699 Prototype IDs (0) 0 Alien Tech Used (0) 0 Bonus (0) 0 TOTAL SCORE: 1279 Bonus ------- None Cogmind --------- Core Integrity 0/250 Matter 295/300 Energy 100/100 System Corruption 0% Temperature Warm (180) Movement Treading (240) Ox1 Location -10/Mines Parts ------- > --- POWER (1) -------- (None) > --- PROPULSION (2) --- Light Treads Light Treads > --- UTILITY (2) ------ High-capacity Storage Unit Core Shielding > --- WEAPON (2) ------- Beam Cannon Light Cannon > --- INVENTORY (20) --- Light Treads Light Treads Compact Wheel Heat Sink Medium Matter Pod (100) Seismic Detector Improved Targeting Computer Core Shielding Core Shielding Utility Shielding Light Armor Plating Hacking Suite Hacking Suite Hacking Suite EM Pulse Gun Small Laser Light Assault Rifle Datajack Hammer Peak State ------------ > --- POWER ------------ Ion Engine > --- PROPULSION ------- Light Treads Light Treads > --- UTILITY ---------- High-capacity Storage Unit Core Shielding > --- WEAPON ----------- Small Laser Light Cannon > --- INVENTORY -------- Light Treads Aluminum Leg Wheel Wheel Compact Wheel Heat Sink Small Storage Unit Large Storage Unit Seismic Detector Improved Targeting Computer Core Shielding Utility Shielding EM Pulse Gun Small Laser Small Laser Beam Cannon Beam Cannon Light Assault Rifle Hammer [Rating: 9] Favorites ----------- Power Ion Engine Engine Ion Engine Propulsion Light Treads Treads Light Treads Utility Core Shielding Device Tractor Beam Storage High-capacity Storage Unit Protection Core Shielding Weapon Beam Cannon Energy Gun Small Laser Energy Cannon Beam Cannon Ballistic Gun Light Assault Rifle Ballistic Cannon Light Cannon Special Weapon Mining Laser Build | -11 -10 -10 ------- Run | Yrd Mat Min Slots Evolved . | . . . Power . | . . . Propulsion . | . . . Utility . | . . . Weapon . | . . . Parts Attached 22 | 8 14 . Power 2 | 1 1 . Engine 2 | 1 1 . Core . | . . . Reactor . | . . . Propulsion 3 | 2 1 . Treads 3 | 2 1 . Leg . | . . . Wheel . | . . . Hover . | . . . Flight . | . . . Utility 7 | 3 4 . Device 2 | 2 . . Storage 3 | 1 2 . Processor . | . . . Hackware . | . . . Protection 2 | . 2 . Artifact . | . . . Weapon 10 | 2 8 . Energy Gun 5 | 1 4 . Energy Cannon 2 | . 2 . Ballistic Gun 1 | 1 . . Ballistic Cannon 1 | . 1 . Launcher . | . . . Special Weapon 1 | . 1 . Impact Weapon . | . . . Slashing Weapon . | . . . Piercing Weapon . | . . . Special Melee Weapon . | . . . Unidentified Prototypes . | . . . Parts Lost 4 | . 2 2 Power 2 | . 1 1 Propulsion . | . . . Utility . | . . . Weapon 2 | . 1 1 Highest Loss Streak 2 | . 1 2 To Critical Strikes . | . . . Average Backups 14 | 6 14 20 Power . | . . . Propulsion 3 | 3 3 3 Utility 6 | . 6 11 Weapon 4 | 1 4 5 Tool/Special . | . . . Unused Backups 28 | 1 11 16 Power . | . . . Propulsion 9 | . 7 2 Utility 14 | 1 2 11 Weapon 4 | . 2 2 Tool/Special 1 | . . 1 Average Slot Usage (%) 99 | . 99 100 Engine 13 | . 13 14 Treads 27 | . 27 28 Storage 14 | . 14 14 Protection 13 | . 13 14 Energy Gun 8 | . 10 . Energy Cannon 13 | . 9 28 Ballistic Gun 4 | . 5 . Ballistic Cannon 1 | . 1 . Peak Build Rating 9 | 8 9 9 Average Rating 8 | 6 8 8 On Entrance 5 | . 7 9 Naked Turns . | . . . Heaviest Build 52 | 13 52 52 Greatest Support 40 | 40 40 40 Greatest Overweight (x) 1 | . 1 1 Average Overweight (x) . | . . 1 Largest Inventory Capacity 20 | 8 20 20 Average Capacity 15 | 7 14 20 Most Carried 20 | 8 20 20 Average Carried 14 | 6 14 20 Final Capacity 20 | 8 20 20 Final Carried 20 | 8 20 19 Class Distribution -------------------- 100% | Mutant Dominant Class ---------------- Mutant | -10/Materials Mutant | -10/Mines Resources | -11 -10 -10 ----------- Run | Yrd Mat Min Matter Collected 706 | 301 405 . Remotely 69 | 69 . . Salvage Created 1185 | 231 954 . Parts 72 | 22 50 . Haulers Intercepted 2 | . 2 . Recyclers Shooed 3 | 1 2 . Parts Field Recycled . | . . . Retrieved Matter . | . . . Parts Self-Destructed . | . . . Prevented . | . . . Kills | -11 -10 -10 ------- Run | Yrd Mat Min Combat Hostiles Destroyed 17 | . 17 . Guns 13 | . 13 . Cannons 4 | . 4 . Classes Destroyed 8 | 3 5 . Worker 2 | 1 1 . Tunneler 8 | 8 . . Hauler 2 | . 2 . Recycler 2 | 1 1 . Operator 4 | . 4 . Watcher 1 | . 1 . Swarmer 3 | . 3 . Grunt 14 | . 14 . Best Kill Streak 4 | 3 4 . Combat Bots Only 3 | . 3 . Max Kills in Single Turn 2 | 1 2 . Gunslinging . | . . . Exploded . | . . . Melee . | . . . Uniques/NPCs Destroyed . | . . . Combat | -11 -10 -10 -------- Run | Yrd Mat Min Hostile Shots Fired 106 | . 97 9 Missed 27 | . 26 1 Hits 79 | . 71 8 Projectile 79 | . 71 8 AOE 9 | . . 9 Critical Strikes 2 | . 2 . Actively Blocked 1 | . 1 . Damage Taken 1138 | . 742 396 Core 253 | . 154 99 Absorbed by Shields . | . . . Redirected to Shielding 38 | . 30 8 Regen/Repaired (Parts) 302 | . 302 . Core Remaining (%) 100 | 100 . . Volleys Fired 133 | 21 109 3 Largest 2 | 2 2 2 Hottest 120 | 60 120 120 Shots Fired 242 | 42 194 6 Gun 191 | 42 149 . Cannon 50 | . 44 6 Launcher . | . . . Special 1 | . 1 . Kinetic 91 | 21 70 . Thermal 113 | 21 86 6 Explosive . | . . . Electromagnetic 38 | . 38 . Robot Hit Streak 18 | 7 18 2 Robot Miss Streak 5 | 2 5 1 Penetration Max . | . . . Secondary Targets 1 | . 1 . Max Gunslinging Chain 1 | . 1 . Shots Hit Robots 152 | 21 128 3 Core Hits 58 | 12 44 2 Critical Kills . | . . . Critical Parts Destroyed . | . . . Critical Strikes . | . . . Melee Attacks . | . . . Impact . | . . . Slashing . | . . . Piercing . | . . . Sneak Attacks . | . . . Combat Hostiles . | . . . Follow-up Attacks . | . . . Damage Inflicted 1847 | 209 1585 53 Guns 1298 | 209 1089 . Cannons 541 | . 488 53 Explosions . | . . . Melee . | . . . Ramming 8 | . 8 . Kinetic 417 | 56 361 . Thermal 1053 | 153 847 53 Explosive . | . . . Electromagnetic 369 | . 369 . Impact . | . . . Slashing . | . . . Piercing . | . . . Highest Corruption . | . . . Average Corruption . | . . . Corruption Purged . | . . . Corruption Blocked . | . . . Overload Shots . | . . . Overflow Damage 41 | . 41 . Projectiles 41 | . 41 . Explosions . | . . . Melee . | . . . Knockbacks . | . . . Impact . | . . . Kinetic . | . . . Secondary . | . . . Self-Inflicted Damage . | . . . Shots . | . . . Rammed 4 | . 4 . Targets Rammed 4 | . 4 . Kicked . | . . . Crushed . | . . . Highest Temperature 424 | 40 424 180 Average Temperature 72 | 16 80 100 Received Heat Transfer 312 | . 312 . Effects 3 | . 3 . Shutdowns 1 | . 1 . Energy Bleed 1 | . 1 . Damage (minor) 1 | . 1 . Siege Activations . | . . . Martial Activations . | . . . Shielding Activations . | . . . Robots Disrupted . | . . . Combat Hostiles . | . . . Robots Corrupted . | . . . Combat Hostiles . | . . . Parts Fried 1 | . 1 . Impact Corruptions . | . . . Robots Melted . | . . . Combat Hostiles . | . . . Parts Melted 1 | . 1 . Heat Transferred 2310 | 350 1849 111 Parts Sabotaged . | . . . Parts Stolen . | . . . Parts Stripped . | . . . Power Chain Reactions . | . . . Alert | -11 -10 -10 ------- Run | Yrd Mat Min Maximum Alert Level . | . . . Low Security (%) 100 | 100 100 100 Level 1 . | . . . Level 2 . | . . . Level 3 . | . . . Level 4 . | . . . Level 5 . | . . . High Security . | . . . Max Security . | . . . Peak Influence 154 | 10 154 22 Initial 22 | . . 22 Average 31 | 1 41 1 Influence Increases 602 | 50 552 . Destroy 0b10 Robot/C 340 | . 340 . Destroy 0b10 Robot/NC 95 | 50 45 . Destroy Leader 96 | . 96 . Successful Hack 25 | . 25 . Destroy Structure 1 | . 1 . Partial Spotted 30 | . 30 . Lose Combat Pursuer 15 | . 15 . Influence Decreases 602 | 50 495 57 Entered New Map 35 | . . 35 Time Decay 547 | 50 475 22 Lost Part 20 | . 20 . Squads Dispatched 5 | . 5 . Investigation 1 | . 1 . Extermination . | . . . Reinforcement 4 | . 4 . Assault . | . . . Garrison . | . . . Intercept . | . . . Searches Triggered . | . . . Construction Impeded . | . . . Haulers Reinforced . | . . . Active Scanning Responses . | . . . Cargo Convoy Interrupts . | . . . Stealth | -11 -10 -10 --------- Run | Yrd Mat Min Distress Signals 2 | . 2 . Communications Jammed . | . . . Distress Signals . | . . . Times Spotted 51 | . 49 2 Peak Tracking Total 5 | . 5 2 Tactical Retreats 1 | . 1 . Traps | -11 -10 -10 ------- Run | Yrd Mat Min Traps Triggered 2 | . 2 . Indirectly . | . . . Trap Hack Attempts . | . . . Triggered . | . . . Disarmed . | . . . Reprogrammed . | . . . Reused . | . . . Traps Extracted . | . . . Installed . | . . . Triggered . | . . . Machines | -11 -10 -10 ---------- Run | Yrd Mat Min Machines Disabled . | . . . Max in Single Turn . | . . . Machines Repaired . | . . . Machines Dismantled . | . . . Machines Sabotaged . | . . . Overloaded Fab Kills . | . . . Hacking | -11 -10 -10 --------- Run | Yrd Mat Min Machines Accessed 6 | . 6 . Terminals 5 | . 5 . Fabricators . | . . . Repair Stations 1 | . 1 . Recycling Units . | . . . Scanalyzers . | . . . Garrison Access . | . . . Total Hacks 26 | . 26 . Successful 13 | . 13 . Failed 13 | . 13 . Catastrophic 1 | . 1 . Database Lockouts . | . . . Manual 15 | . 15 . Terminals 15 | . 15 . Fabricators . | . . . Repair Stations 11 | . 11 . Recycling Units . | . . . Scanalyzers . | . . . Garrison Access . | . . . Terminal Hacks 1 | . 1 . Part Schematic 1 | . 1 . Fabricator Hacks . | . . . Repair Station Hacks 8 | . 8 . Scan Component 4 | . 4 . Repair 4 | . 4 . Recycling Unit Hacks . | . . . Scanalyzer . | . . . Garrison Access Hacks . | . . . Unauthorized Hacks 4 | . 4 . Terminals 4 | . 4 . Skim 4 | . 4 . Fabricators . | . . . Repair Stations . | . . . Recycling Units . | . . . Scanalyzers . | . . . Garrison Access . | . . . Data Cores Recovered . | . . . Used . | . . . Hacking Detections 6 | . 6 . Full Trace Events . | . . . Feedback Events . | . . . Feedback Blocked . | . . . Robot Schematics Acquired . | . . . Robots Built . | . . . Authchips . | . . . Time . | . . . Total Robot Build Rating . | . . . Part Schematics Acquired 1 | . 1 . Parts Built . | . . . Authchips . | . . . Time . | . . . Total Part Build Rating . | . . . Parts Repaired 4 | . 4 . Time 104 | . 104 . Parts Recycled . | . . . Recycled Matter . | . . . Retrieved Matter . | . . . Retrieved Components . | . . . Parts Scanalyzed . | . . . Part Schematics Acquired . | . . . Parts Damaged . | . . . Bothacking | -11 -10 -10 ------------ Run | Yrd Mat Min Used RIF Installer . | . . . Robots Hacked . | . . . Non-combat . | . . . Combat . | . . . Robot Hacks Applied . | . . . Relay Couplers Released . | . . . Fabnet Peak Effective % . | . . . Robots Rewired . | . . . Allies Hacked . | . . . Hacks Repelled . | . . . Allies | -11 -10 -10 -------- Run | Yrd Mat Min Total Allies . | . . . Largest Group . | . . . Highest-Rated Group . | . . . Highest-Rated Ally . | . . . Total Orders . | . . . Ally Attacks . | . . . Total Damage . | . . . Kills . | . . . Allies Corrupted . | . . . Allies Melted . | . . . Intel | -11 -10 -10 ------- Run | Yrd Mat Min Active Infowar (turns) 44 | 29 15 . Seismic 44 | 29 15 . Robot Analysis Total . | . . . Derelict Logs Recovered 1 | . . 1 Drone Launches . | . . . Drone Recoveries . | . . . Exploration | -11 -10 -10 ------------- Run | Yrd Mat Min Turns Passed 3777 | 307 2838 632 Spaces Moved 1411 | 144 1096 171 Core 3 | 3 . . Treads 1408 | 141 1096 171 Legs . | . . . Wheels . | . . . Hover . | . . . Flight . | . . . Fastest Speed 50 | 50 160 240 Average Speed 197 | 157 196 240 Slowest Speed 240 | 160 240 240 Overloaded Moves . | . . . Propulsion Burnouts . | . . . Robots Hopped . | . . . Potential Cave-ins . | . . . Cave-ins Triggered . | . . . Exploration Rate (%) 48 | 8 98 39 Regions Visited 2 Branch Regions 1 Pre-discovered Areas 1 | . . 1 Known Exits Taken . | . . . Unknown Exits Taken 2 | 1 1 . Scrap Searched . | . . . Spaces Dug . | . . . Terrain Destroyed . | . . . Melee . | . . . Projectile . | . . . AOE . | . . . Terrain Rammed . | . . . Walls Destroyed . | . . . Machines Disabled . | . . . Actions | -11 -10 -10 --------- Run | Yrd Mat Min Total 2166 | 183 1596 387 Wait 523 | . 311 212 Move 1409 | 143 1095 171 Hop . | . . . Pick Up 41 | 10 31 . Fast Attach 13 | 6 7 . Attach 4 | 1 2 1 Detach 1 | . 1 . Swap 15 | 1 14 . Drop 23 | 1 22 . Fire 133 | 21 109 3 Melee . | . . . Ram . | . . . Kick . | . . . Crush 4 | . 4 . Escape Stasis . | . . . Rewire . | . . . Trap . | . . . Miscellaneous . | . . . Route ------- -11/Scrapyard -10/Materials (discovered 5 exits: [*Mat x3] / [*Min x2]) -10/Mines (discovered 2 exits: [*Mat x2]) History --------- Turn | Location | Event 33 | -11/Scrapyard | Discovered new exit (range 16) 308 | -11/Scrapyard | Entered Materials 309 | -10/Materials | Build established: Mutant 1150 | -10/Materials | Discovered new exit (range 5) 1243 | -10/Materials | Discovered new exit (range 6) 1424 | -10/Materials | Discovered new exit (range 12) 1615 | -10/Materials | Discovered new exit (range 15) 2086 | -10/Materials | Discovered new exit (range 15) 2584 | -10/Materials | Core integrity fell below 50% 2888 | -10/Materials | Repaired Lgt. Treads 2916 | -10/Materials | Repaired Lgt. Treads 2943 | -10/Materials | Repaired Ion Engine 2970 | -10/Materials | Repaired Lgt. Assault Rifle 3146 | -10/Materials | Entered Mines 3147 | -10/Mines | Assembled infested the area 3159 | -10/Mines | Met a Derelict bent on vengeance 3461 | -10/Mines | Discovered new exit (range 5) 3593 | -10/Mines | Discovered new exit (range 9) 3777 | -10/Mines | Core integrity fell below 20% 3778 | -10/Mines | Destroyed by D-53 Grenadier with Mini Grenade Launcher Last Messages --------------- 02988_ Acquired 12 matter. 02998_ Acquired 8 matter. 03067_ Slammed into T-07 Excavator. LOCATION=UNKNOWN GOAL=ESCAPE 03147_ ALERT: Infestation in the mines, dispatching Demolisher response squad. 03390_ K-01 Serf collects debris. 03429_ Acquired derelict log, extracted data. World map updated: -8/Materials. 03461_ EXIT=FOUND 03565_ U-05 Engineer builds a Wall. 03593_ EXIT=FOUND 03662_ U-05 Engineer builds a Wall. 03707_ U-05 Engineer lays Concrete. 03710_ U-05 Engineer builds a Wall. 03771_ R-06 Scavenger destroyed. 03774_ The unstable cave ceiling collapses. 03776_ Beam Cannon destroyed. 03778_ Ion Engine destroyed. Map ----- +----------------------------------------------------+ | ?????????????????????????????????????????????????? | | ???????????????????????????????????#####?????????? | | ??????????####????????????????????# ##????????? | | ?????????# ##?????????????????## #????????? | | ???????## #???????????####### < #????????? | | ??????## #???????????# #?????????? | | ####### ?????###?????# #??????????? | | % % ## #???#### #?????# ##### #########???? | | #### # ###??# ########## #???####### ##??? | | #### ## ###??###*% ! # #????????# #??? | | #**%% !%%!*##### % % % # #?###????# """" #??? | | # % %**% % !!= %#### # #######?## """" #???? | | #==##### % = !#??# # ##### """" #???? | | #!%#??# ########="=#??# #???? | | #*|#??#### ##% ##?# ##???? | | # #???????##### !#?#### ! ##????? | | # #??????????#* %#????# % ####?????? | | # #??????????## ##=!#????## #### ##????????? | | ##????????######*%##????#####??######?????????? | | #????????????##%!*##?????????????????????????? | | #????????????# !*!|######????????????????????? | | ##???????????# =%## ##???????????????????? | | ##??????????## =! ##??????????????????? | | #??????????## #??????????????????? | | #??????????# #??????????????????? | | #?????????# @ #??????????????????? | | ##?????????# #??????????????????? | | ##??????????# #??????????????????? | | ##???????????## # #?????????????????? | | ####?????????????###### u ????????????????? | | ??????????????????????## ??????????????? | | ???????????????????????# ????????????? | | ??????????????????????? ### d ##???????????? | | ??????????????????????? ##??#d #????????????? | | ??????????????????????? #???? ???????????? | | ???????????????????????r ????? ????????????? | | ?????????????????????? ????? ????????????? | | ?????????????????????? ?????? ??????????????? | | ??????????????????????## ???????????????????????? | | ????????????????????????#????????????????????????? | | ?????????????????????????????????????????????????? | | ?????????????????????????????????????????????????? | | ?????????????????????????????????????????????????? | | ?????????????????????????????????????????????????? | | ?????????????????????????????????????????????????? | | ?????????????????????????????????????????????????? | | ?????????????????????????????????????????????????? | | ?????????????????????????????????????????????????? | | ?????????????????????????????????????????????????? | | ?????????????????????????????????????????????????? | +----------------------------------------------------+ Best States ------------- Heat Dissipation 25 Energy Generation 10 Energy Capacity 250 Matter Stores 300 Matter Capacity 300 Sight Range 16 Terrain Scan Density 10 Core Shielding 20 Evasion (%) 40 Recoil Reduction 2 Item Schematics ----------------- Lgt. Assault Rifle | -10/Materials | Hacked Robot Schematics ------------------ None Fabricated ------------ Nothing Repaired ---------- Lgt. Treads | 1% | -10/Materials Lgt. Treads | 27% | -10/Materials Ion Engine | 51% | -10/Materials Lgt. Assault Rifle | 60% | -10/Materials Alien Tech Used ----------------- None Achievements -------------- None Challenges ------------ None Game ------ Seed ReactiveExoskeletonCarapace Manual? 0 Play Time 00:18:01 Cumulative 964.7 hours Start 2025.06.25 @ 00:30:43 End 2025.06.25 @ 00:48:00 Sessions 1 Manual Loads 0 Difficulty Rogue Special Mode None Game No. 497 Rogue 497 Adventurer 0 Explorer 0 Win Type - Total 23 Types 10/4/3/0/1/1/2/2/0/0 Lore% 85 Gallery% 87 Achievement% 83 Wizard Run 0 Options --------- Layout 0 ASCII 0 Keyboard 0 Movement Numpad Keybinds 0 Fullscreen 2 Font 24/Smallcaps Map View 76x50 Zoom Use 0% Tactical HUD 1 Map Filters NONE Filters SHIFT_HUE(315) Steam 1 RUN: 2f9acfc3-6195-484d-b63a-e145e914c316